bitfinex/quotes_BTCUSD_20250615
["timestamp","ask_amount","ask_price","bid_price","bid_amount"]
[1750004792349,0.35047265,105560.0,105550.0,0.30462087]
[1750004792559,0.36941804,105560.0,105550.0,0.30462087]
[1750004793245,0.37889096,105560.0,105550.0,0.30462087]
[1750004794578,0.38836397,105560.0,105550.0,0.30462087]
[1750004794790,0.92751408,105560.0,105550.0,0.30462087]
[1750004795680,1.11698032,105560.0,105550.0,0.30462087]
[1750004795916,1.20365671,105560.0,105550.0,0.29514732]
[1750004796213,1.19418379,105560.0,105550.0,0.29514732]
[1750004796695,1.19418379,105560.0,105550.0,0.27619977]
[1750004796962,1.19418379,105560.0,105550.0,0.28567359]
[1750004798436,1.19418379,105560.0,105550.0,0.27619977]
[1750004798646,1.18471078,105560.0,105550.0,0.2219851]
[1750004798859,1.18471078,105560.0,105550.0,0.2314591]
[1750004799080,1.19408318,105560.0,105550.0,0.21251101]
[1750004799518,1.19408318,105560.0,105550.0,0.02302736]
[1750004800271,1.19408318,105560.0,105550.0,0.21251101]
[1750004800500,1.09793396,105560.0,105550.0,0.22198519]
[1750004800934,1.09793396,105560.0,105550.0,0.24093328]
[1750004801416,0.56825758,105560.0,105550.0,0.24705928]
[1750004801689,1.10740715,105560.0,105550.0,0.27233319]
[1750004801954,1.10740715,105560.0,105550.0,0.23145928]
[1750004802779,1.26276715,105560.0,105550.0,0.23145928]
[1750004803032,1.26276715,105560.0,105550.0,0.24093328]
[1750004804470,1.10740715,105560.0,105550.0,0.25040719]
[1750004804688,1.26276715,105560.0,105550.0,0.25040719]
[1750004805900,1.26276715,105560.0,105550.0,0.29098101]
[1750004805901,1.27224007,105560.0,105550.0,0.29098101]
[1750004806126,1.28171335,105560.0,105550.0,0.29098056]
[1750004806663,1.28171335,105560.0,105550.0,0.28150683]
[1750004808610,1.28171335,105560.0,105550.0,0.29098056]
[1750004808932,1.34926614,105560.0,105550.0,0.29098056]
[1750004809602,1.34926614,105560.0,105550.0,0.28150683]
[1750004809831,1.34926614,105560.0,105550.0,0.29098056]
[1750004811590,1.34926614,105560.0,105550.0,0.28150683]
[1750004812117,1.33979322,105560.0,105550.0,0.28150683]
[1750004816454,1.33032003,105560.0,105550.0,0.2625591]
[1750004816614,1.33032003,105560.0,105550.0,0.2314591]
[1750004818672,1.33032003,105560.0,105550.0,0.24093301]
[1750004819192,1.33032003,105560.0,105550.0,0.25040683]
[1750004819684,1.33032003,105560.0,105550.0,0.24093301]
[1750004819929,1.33032003,105560.0,105550.0,0.2314591]
[1750004820395,1.3212823,105560.0,105550.0,0.2314591]
[1750004822534,1.3212823,105560.0,105550.0,0.2219851]
[1750004822778,1.3212823,105560.0,105550.0,0.2314591]
[1750004825654,1.3212823,105560.0,105550.0,0.2219851]
[1750004826211,1.3212823,105560.0,105550.0,0.24093301]
[1750004827049,1.3212823,105560.0,105550.0,0.25040674]
[1750004827321,1.3212823,105560.0,105550.0,0.24093301]
[1750004827705,1.3212823,105560.0,105550.0,0.2314591]
[1750004828771,1.31180902,105560.0,105550.0,0.2314591]
[1750004830918,1.31180902,105560.0,105550.0,0.2219851]
[1750004832042,1.31180902,105560.0,105550.0,0.2314591]
[1750004833231,1.31180902,105560.0,105550.0,0.24093301]
[1750004834026,1.31180902,105560.0,105550.0,0.2314591]
[1750004834480,1.15644902,105560.0,105550.0,0.2219851]
[1750004834695,1.31172902,105560.0,105550.0,0.2219851]
[1750004835158,1.31172902,105560.0,105550.0,0.2314591]
[1750004835833,1.31172902,105560.0,105550.0,0.24093301]
[1750004836071,1.31172902,105560.0,105550.0,0.25040683]
[1750004836290,1.31172902,105560.0,105550.0,0.2314591]
[1750004837205,1.31172902,105560.0,105550.0,0.2219851]
[1750004840559,1.31172902,105560.0,105550.0,0.02302736]
[1750004840757,6.16444158,105560.0,105550.0,0.00404736]
[1750004840985,6.19928287,105560.0,105550.0,0.00404736]
[1750004841197,6.19928262,105560.0,105550.0,0.00404736]
[1750004841420,6.19265979,105560.0,105550.0,0.00404736]
[1750004841643,6.1992826,105560.0,105550.0,0.00404736]
[1750004841860,6.19928259,105560.0,105550.0,0.00204736]
[1750004842124,6.19928257,105560.0,105550.0,4.736e-05]
[1750004842388,6.1992826,105560.0,105550.0,4.736e-05]
[1750004842826,6.19928259,105560.0,105550.0,4.736e-05]
[1750004843050,6.79936215,105560.0,105550.0,0.00104736]
[1750004843275,6.80898495,105560.0,105550.0,0.00104736]
[1750004843493,6.80236215,105560.0,105550.0,0.00104736]
[1750004843713,6.20228256,105560.0,105550.0,4.736e-05]
[1750004843947,6.19765979,105560.0,105550.0,0.00104736]
[1750004844165,6.20428256,105560.0,105550.0,0.00104736]
[1750004844381,6.81098475,105560.0,105550.0,0.00104736]
[1750004844590,6.20428244,105560.0,105550.0,0.00104736]
[1750004844837,6.20428241,105560.0,105550.0,0.00104736]
[1750004845053,6.19765979,105560.0,105550.0,0.00104736]
[1750004845272,6.2042824,105560.0,105550.0,0.00104736]
[1750004845486,6.20428242,105560.0,105550.0,0.00104736]
[1750004845696,6.22613579,105560.0,105550.0,0.00104736]
[1750004845916,6.23275842,105560.0,105550.0,0.00104736]
[1750004846360,6.22613579,105560.0,105550.0,0.00104736]
[1750004846596,0.23855114,105540.0,105530.0,0.01]
[1750004846827,6.39400998,105540.0,105530.0,0.01004735]
[1750004847258,6.42910853,105540.0,105530.0,0.01004735]
[1750004847488,6.42910841,105540.0,105530.0,0.01004735]
[1750004847697,6.42248598,105540.0,105530.0,0.01004735]
[1750004847961,6.5253509,105540.0,105530.0,0.01004735]
[1750004848183,6.55610752,105540.0,105530.0,0.01204735]
[1750004848391,6.52635116,105540.0,105530.0,0.01204735]
[1750004848602,6.51972774,105540.0,105530.0,0.01204735]
[1750004849277,6.51872774,105540.0,105530.0,0.01004735]
[1750004849693,6.51972774,105540.0,105530.0,0.01104735]
[1750004850147,6.51872774,105540.0,105530.0,0.01004735]
[1750004850992,6.52072774,105540.0,105530.0,0.01104735]
[1750004859455,6.37211272,105540.0,105530.0,0.01104735]
[1750004859662,6.37211277,105540.0,105530.0,0.02884039]
[1750004859870,6.52735273,105540.0,105530.0,0.0288403]
[1750004860085,6.52735275,105540.0,105530.0,0.02884028]
[1750004860253,6.52072774,105540.0,105530.0,0.02884028]
[1750004860486,6.52735272,105540.0,105530.0,0.01104735]
[1750004860638,6.52735274,105540.0,105530.0,0.02884045]
[1750004860841,6.52072774,105540.0,105530.0,0.01104735]
[1750004861039,6.52735273,105540.0,105530.0,0.02884045]
[1750004861433,6.56771272,105540.0,105530.0,0.02884045]
[1750004861691,6.56771328,105540.0,105530.0,0.01104735]
[1750004861933,6.56771337,105540.0,105530.0,0.0288404]
[1750004862188,6.56771357,105540.0,105530.0,0.01104735]
[1750004862443,6.5677136,105540.0,105530.0,0.02884019]
[1750004862676,6.56771361,105540.0,105530.0,0.01104735]
[1750004862884,6.56771369,105540.0,105530.0,0.02884022]
[1750004863200,6.56771378,105540.0,105530.0,0.02884022]
[1750004863496,7.51441611,105540.0,105530.0,8e-08]
[1750004863771,0.54851058,105510.0,105500.0,1.03166]
[1750004864030,1.38425939,105510.0,105500.0,1.03179447]
[1750004864764,1.41274939,105510.0,105500.0,1.03179447]
[1750004865280,2.01945175,105510.0,105500.0,1.03179447]
[1750004865558,2.02045175,105510.0,105500.0,1.03579447]
[1750004866561,2.02145175,105510.0,105500.0,1.03679447]
[1750004866989,2.03273665,105510.0,105500.0,1.03679447]
[1750004869424,1.42603429,105510.0,105500.0,1.03679447]
[1750004870008,0.39125231,105510.0,105500.0,1.25986566]
[1750004870218,0.002,105510.0,105500.0,1.97228782]
[1750004870831,0.002,105510.0,105500.0,1.36558546]
[1750004871043,0.002,105510.0,105500.0,1.97228782]
[1750004872897,0.002,105510.0,105500.0,1.36558546]
[1750004875685,0.002,105510.0,105500.0,1.52082546]
[1750004875912,0.002,105510.0,105500.0,1.36558546]
[1750004876616,0.002,105510.0,105500.0,1.39402002]
[1750004879375,0.00947606,105520.0,105510.0,0.26392857]
[1750004879641,0.9689857,105530.0,105520.0,0.24936732]
[1750004879846,5.67899473,105530.0,105520.0,0.24936732]
[1750004880057,5.6723678,105530.0,105520.0,0.24936732]
[1750004880231,5.67899474,105530.0,105520.0,0.25884356]
[1750004880432,5.47337175,105530.0,105520.0,0.25884356]
[1750004880634,5.48284763,105530.0,105520.0,0.25884356]
[1750004880861,5.65335816,105530.0,105520.0,0.24936732]
[1750004881576,5.65998528,105530.0,105520.0,0.24936732]
[1750004882196,5.65998529,105530.0,105520.0,0.24936732]
[1750004882395,5.80198978,105530.0,105520.0,0.25884356]
[1750004882604,6.00098532,105530.0,105520.0,0.25884356]
[1750004883031,5.99151003,105530.0,105520.0,0.2493675]
[1750004883240,5.98303452,105530.0,105520.0,0.2503675]
[1750004883492,5.98303441,105530.0,105520.0,0.2503675]
[1750004883693,5.9830345,105530.0,105520.0,0.2503675]
[1750004883897,5.97640738,105530.0,105520.0,0.2503675]
[1750004884103,5.97355925,105530.0,105520.0,0.2189675]
[1750004884313,5.42732432,105530.0,105520.0,0.20949099]
[1750004884503,5.97355957,105530.0,105520.0,0.20949108]
[1750004884714,5.96693159,105530.0,105520.0,0.20949108]
[1750004884897,5.96693159,105530.0,105520.0,0.21896759]
[1750004885123,5.97355983,105530.0,105520.0,0.21896759]
[1750004885325,5.96693159,105530.0,105520.0,0.21896759]
[1750004885537,5.97356,105530.0,105520.0,0.21896759]
[1750004885742,5.96693159,105530.0,105520.0,0.21896759]
[1750004886376,5.97356072,105530.0,105520.0,0.21896768]
[1750004886638,5.97356075,105530.0,105520.0,0.21896768]
[1750004886875,5.81832077,105530.0,105520.0,0.23792052]
[1750004887130,5.96689159,105530.0,105520.0,0.26921989]
[1750004887398,5.78400155,105530.0,105520.0,0.26921989]
[1750004887621,5.97352157,105530.0,105520.0,0.26921989]
[1750004887825,5.96689123,105530.0,105520.0,0.26921989]
[1750004888031,5.78400226,105530.0,105520.0,0.26921989]
[1750004888244,5.77737167,105530.0,105520.0,0.26921989]
[1750004888445,5.96689123,105530.0,105520.0,0.26921989]
[1750004888669,5.97352188,105530.0,105520.0,0.26921989]
[1750004888881,5.97352188,105530.0,105520.0,0.24079081]
[1750004889088,5.97352199,105530.0,105520.0,0.22183752]
[1750004889300,5.97352199,105530.0,105520.0,0.23131439]
[1750004889514,5.96689123,105530.0,105520.0,0.23131439]
[1750004889751,5.96689123,105530.0,105520.0,0.24079117]
[1750004889973,1.25688223,105530.0,105520.0,0.24079117]
[1750004890183,1.25688223,105530.0,105520.0,0.25977117]
[1750004890391,1.25688223,105530.0,105520.0,0.24079117]
[1750004890593,1.24740662,105530.0,105520.0,0.24079117]
[1750004890800,1.24740662,105530.0,105520.0,0.23131439]
[1750004891429,1.23793074,105530.0,105520.0,0.04177687]
[1750004891847,1.23793074,105530.0,105520.0,0.02627687]
[1750004892055,1.23793074,105530.0,105520.0,0.001]
[1750004894387,1.08273074,105530.0,105520.0,0.001]
[1750004894598,1.23793074,105530.0,105520.0,0.001]
[1750004895011,1.30544174,105530.0,105520.0,0.001]
[1750004899135,0.69832347,105530.0,105520.0,0.19053752]
[1750004899335,1.30544174,105530.0,105520.0,0.20001439]
[1750004900024,1.31207389,105530.0,105520.0,0.20001439]
[1750004900273,1.31207389,105530.0,105520.0,0.001]
[1750004900274,1.30544174,105530.0,105520.0,0.001]
[1750004900463,1.31207392,105530.0,105520.0,0.001]
[1750004900649,1.30544174,105530.0,105520.0,0.001]
[1750004901092,1.31207391,105530.0,105520.0,0.001]
[1750004901731,1.31207394,105530.0,105520.0,0.001]
[1750004901911,1.30544174,105530.0,105520.0,0.001]
[1750004902113,1.31207394,105530.0,105520.0,0.001]
[1750004902324,1.30544174,105530.0,105520.0,0.001]
[1750004902746,1.31207395,105530.0,105520.0,0.001]
[1750004902994,1.30544174,105530.0,105520.0,0.001]
[1750004903234,1.31207393,105530.0,105520.0,0.001]
[1750004903441,1.30544174,105530.0,105520.0,0.001]
[1750004903652,1.31207392,105530.0,105520.0,0.001]
[1750004903858,1.40159096,105530.0,105520.0,0.001]
[1750004904078,1.40822314,105530.0,105520.0,0.001]
[1750004904505,1.30544174,105530.0,105520.0,0.001]
[1750004904717,1.31207393,105530.0,105520.0,0.001]
[1750004905138,1.30544174,105530.0,105520.0,0.001]
[1750004905581,1.31207393,105530.0,105520.0,0.001]
[1750004905791,1.31207392,105530.0,105520.0,0.001]
[1750004905969,1.31207393,105530.0,105520.0,0.001]
[1750004906481,1.30544174,105530.0,105520.0,0.001]
[1750004906906,1.40822314,105530.0,105520.0,0.001]
[1750004907555,1.31207392,105530.0,105520.0,0.20001439]
[1750004907761,1.31207398,105530.0,105520.0,0.20001439]
[1750004907998,1.31207397,105530.0,105520.0,0.001]
[1750004908613,0.7049557,105530.0,105520.0,0.001]
[1750004908810,1.31207397,105530.0,105520.0,0.19053752]
[1750004909094,1.30544174,105530.0,105520.0,0.19053752]
[1750004909305,1.31207395,105530.0,105520.0,0.001]
[1750004909512,1.31207399,105530.0,105520.0,0.001]
[1750004909720,1.40159096,105530.0,105520.0,0.001]
[1750004909981,1.30544174,105530.0,105520.0,0.001]
[1750004910219,1.31207222,105530.0,105520.0,0.001]
[1750004910444,1.30544174,105530.0,105520.0,0.001]
[1750004911083,1.30544174,105530.0,105520.0,0.20001439]
[1750004914404,1.30544174,105530.0,105520.0,0.20949108]
[1750004914846,1.30544174,105530.0,105520.0,0.24189108]
[1750004915075,1.30544174,105530.0,105520.0,0.23241439]
[1750004915285,1.30544174,105530.0,105520.0,0.24189117]
[1750004915502,1.30536174,105530.0,105520.0,0.24189117]
[1750004918474,1.30536174,105530.0,105520.0,0.23241439]
[1750004919421,1.30536174,105530.0,105520.0,0.24189117]
[1750004921064,1.3119967,105530.0,105520.0,0.24189117]
[1750004921348,1.30536174,105530.0,105520.0,0.20949117]
[1750004921635,1.31199675,105530.0,105520.0,0.20949117]
[1750004922169,1.30536174,105530.0,105520.0,0.20949117]
[1750004922378,1.31199694,105530.0,105520.0,0.21896786]
[1750004922589,1.31199696,105530.0,105520.0,0.21896786]
[1750004922806,1.31199697,105530.0,105520.0,0.21896786]
[1750004923034,1.30536174,105530.0,105520.0,0.21896786]
[1750004923282,1.31199696,105530.0,105520.0,0.001]
[1750004923517,0.70487869,105530.0,105520.0,0.001]
[1750004923756,1.31199696,105530.0,105520.0,0.001]
[1750004924038,1.31199722,105530.0,105520.0,0.001]
[1750004924263,1.31199717,105530.0,105520.0,0.001]
[1750004924507,1.31199721,105530.0,105520.0,0.001]
[1750004924738,1.31199717,105530.0,105520.0,0.001]
[1750004925216,1.30536174,105530.0,105520.0,0.001]
[1750004925437,1.31199712,105530.0,105520.0,0.001]
[1750004925674,1.31199715,105530.0,105520.0,0.001]
[1750004925907,1.30536174,105530.0,105520.0,0.001]
[1750004926137,1.31199708,105530.0,105520.0,0.001]
[1750004926816,1.31199709,105530.0,105520.0,0.001]
[1750004927052,1.3119971,105530.0,105520.0,0.001]
[1750004927295,1.31199717,105530.0,105520.0,0.001]
[1750004927515,1.30536174,105530.0,105520.0,0.001]
[1750004927961,1.31199719,105530.0,105520.0,0.001]
[1750004928380,1.3119973,105530.0,105520.0,0.001]
[1750004928593,1.31199745,105530.0,105520.0,0.001]
[1750004928809,1.30536174,105530.0,105520.0,0.001]
[1750004929022,1.31199767,105530.0,105520.0,0.001]
[1750004929477,1.31199781,105530.0,105520.0,0.001]
[1750004929690,1.3119979,105530.0,105520.0,0.001]
[1750004929898,1.31199796,105530.0,105520.0,0.001]
[1750004930108,1.30536174,105530.0,105520.0,0.001]
[1750004930329,1.31199798,105530.0,105520.0,0.001]
[1750004930774,1.30536174,105530.0,105520.0,0.001]
[1750004930999,1.31199809,105530.0,105520.0,0.19053752]
[1750004931233,1.30536174,105530.0,105520.0,0.20001439]
[1750004931474,1.31199812,105530.0,105520.0,0.20949117]
[1750004931710,1.30536174,105530.0,105520.0,0.20949117]
[1750004932133,1.31199812,105530.0,105520.0,0.20949117]
[1750004932772,1.30536174,105530.0,105520.0,0.20949117]
[1750004933439,1.31199808,105530.0,105520.0,0.20949117]
[1750004933712,1.30536174,105530.0,105520.0,0.20949117]
[1750004933935,1.31199805,105530.0,105520.0,0.20949117]
[1750004934179,1.31199805,105530.0,105520.0,0.21896786]
[1750004934399,1.30536174,105530.0,105520.0,0.21896786]
[1750004934824,1.31199805,105530.0,105520.0,0.21896786]
[1750004935249,1.30536174,105530.0,105520.0,0.21896786]
[1750004935664,1.31199813,105530.0,105520.0,0.21896786]
[1750004935886,1.30536174,105530.0,105520.0,0.20949117]
[1750004936319,1.30536174,105530.0,105520.0,0.20001439]
[1750004936528,1.31199811,105530.0,105520.0,0.20001439]
[1750004936738,1.31199809,105530.0,105520.0,0.001]
[1750004936960,1.31199808,105530.0,105520.0,0.001]
[1750004937169,0.7048798,105530.0,105520.0,0.001]
[1750004937426,1.31199807,105530.0,105520.0,0.001]
[1750004937641,1.30536174,105530.0,105520.0,0.001]
[1750004937909,1.31199805,105530.0,105520.0,0.001]
[1750004938090,1.31199804,105530.0,105520.0,0.001]
[1750004938271,1.31199805,105530.0,105520.0,0.001]
[1750004938484,1.30536174,105530.0,105520.0,0.001]
[1750004938852,1.31199808,105530.0,105520.0,0.001]
[1750004939072,1.30536174,105530.0,105520.0,0.001]
[1750004939310,1.31199927,105530.0,105520.0,0.001]
[1750004939608,1.3119993,105530.0,105520.0,0.001]
[1750004939804,1.31199948,105530.0,105520.0,0.001]
[1750004940757,1.30536174,105530.0,105520.0,0.001]
[1750004940961,1.31199938,105530.0,105520.0,0.001]
[1750004941577,1.31199943,105530.0,105520.0,0.001]
[1750004941784,1.30536174,105530.0,105520.0,0.001]
[1750004941995,1.31199943,105530.0,105520.0,0.001]
[1750004942207,1.31199948,105530.0,105520.0,0.001]
[1750004942416,1.31199944,105530.0,105520.0,0.001]
[1750004942635,1.30536174,105530.0,105520.0,0.001]
[1750004942841,1.31199943,105530.0,105520.0,0.001]
[1750004943051,1.31199942,105530.0,105520.0,0.001]
[1750004943275,1.31199787,105530.0,105520.0,0.001]
[1750004943792,1.30536174,105530.0,105520.0,0.001]
[1750004944017,1.40151096,105530.0,105520.0,0.001]
[1750004944254,1.40814705,105530.0,105520.0,0.001]
[1750004944471,1.40814703,105530.0,105520.0,0.001]
[1750004944728,1.31199777,105530.0,105520.0,0.001]
[1750004944950,1.30536174,105530.0,105520.0,0.001]
[1750004945195,1.31199784,105530.0,105520.0,0.001]
[1750004945651,1.31199782,105530.0,105520.0,0.001]
[1750004945876,1.31199787,105530.0,105520.0,0.001]
[1750004946341,1.31199783,105530.0,105520.0,0.001]
[1750004946563,1.30536174,105530.0,105520.0,0.001]
[1750004946848,1.31199788,105530.0,105520.0,0.001]
[1750004947068,1.40814709,105530.0,105520.0,0.001]
[1750004947301,1.31199786,105530.0,105520.0,0.001]
[1750004947529,1.31199782,105530.0,105520.0,0.001]
[1750004947977,1.30536174,105530.0,105520.0,0.001]
[1750004948424,1.31199785,105530.0,105520.0,0.001]
[1750004948662,1.31199786,105530.0,105520.0,0.001]
[1750004948883,1.31199784,105530.0,105520.0,0.001]
[1750004949316,1.3119978,105530.0,105520.0,0.001]
[1750004949534,1.30536174,105530.0,105520.0,0.001]
[1750004949763,1.31199773,105530.0,105520.0,0.001]
[1750004949992,1.40814695,105530.0,105520.0,0.001]
[1750004950216,1.40814585,105530.0,105520.0,0.001]
[1750004950448,1.40151096,105530.0,105520.0,0.001]
[1750004950704,1.30536174,105530.0,105520.0,0.001]
[1750004951167,1.31199669,105530.0,105520.0,0.001]
[1750004951380,1.30536174,105530.0,105520.0,0.001]
[1750004951589,1.31199595,105530.0,105520.0,0.001]
[1750004951835,1.30536174,105530.0,105520.0,0.001]
[1750004952057,1.40814504,105530.0,105520.0,0.001]
[1750004952263,1.40814505,105530.0,105520.0,0.001]
[1750004952472,1.31199595,105530.0,105520.0,0.001]
[1750004952689,1.31199593,105530.0,105520.0,0.001]
[1750004952902,1.31199596,105530.0,105520.0,0.001]
[1750004953117,0.70487768,105530.0,105520.0,0.001]
[1750004953374,1.31199595,105530.0,105520.0,0.001]
[1750004953599,1.30536174,105530.0,105520.0,0.001]
[1750004953834,1.311996,105530.0,105520.0,0.001]
[1750004954041,1.30536174,105530.0,105520.0,0.001]
[1750004954264,1.31199751,105530.0,105520.0,0.001]
[1750004954533,1.31191751,105530.0,105520.0,0.001]
[1750004954817,1.44116676,105530.0,105520.0,0.001]
[1750004955069,1.43453096,105530.0,105520.0,0.001]
[1750004955328,1.42456691,105530.0,105520.0,0.001]
[1750004955620,0.72129934,105530.0,105520.0,0.001]
[1750004955900,1.3119176,105530.0,105520.0,0.001]
[1750004956179,1.31191763,105530.0,105520.0,0.001]
[1750004956455,1.31191754,105530.0,105520.0,0.001]
[1750004956695,0.69816347,105530.0,105520.0,0.001]
[1750004956913,0.70479936,105530.0,105520.0,0.0332]
[1750004957133,1.30528174,105530.0,105520.0,0.0332]
[1750004957572,1.31191754,105530.0,105520.0,0.0332]
[1750004958039,1.30528174,105530.0,105520.0,0.0332]
[1750004958285,1.31191767,105530.0,105520.0,0.0332]
[1750004958525,1.31191773,105530.0,105520.0,0.0332]
[1750004958743,0.55259944,105530.0,105520.0,0.25120561]
[1750004958967,1.31475771,105530.0,105520.0,0.2322143]
[1750004959180,1.31475771,105530.0,105520.0,0.24169099]
[1750004959830,1.31475771,105530.0,105520.0,0.2322143]
[1750004960040,1.31475771,105530.0,105520.0,0.24169081]
[1750004960271,0.01360391,105530.0,105520.0,0.2657079]
[1750004960505,0.002,105530.0,105520.0,1.06521715]
[1750004960742,0.1576,105530.0,105520.0,1.09368165]
[1750004960980,0.1576,105530.0,105520.0,0.48656338]
[1750004961222,0.1576,105530.0,105520.0,0.39041416]
[1750004961439,0.1566,105530.0,105520.0,0.39041416]
[1750004961673,0.1566,105530.0,105520.0,0.39241416]
[1750004961884,0.16607517,105530.0,105520.0,0.36194966]
[1750004962093,0.16503517,105530.0,105520.0,0.36094966]
[1750004962370,0.77315344,105530.0,105520.0,0.36494966]
[1750004962583,0.77415344,105530.0,105520.0,0.36694966]
[1750004962815,0.77315344,105530.0,105520.0,0.36494966]
[1750004963309,0.77415344,105530.0,105520.0,0.36794966]
[1750004963753,0.78362878,105530.0,105520.0,0.36794966]
[1750004963970,0.15756,105530.0,105520.0,0.36794966]
[1750004964181,0.77415344,105530.0,105520.0,0.36794966]
[1750004964610,0.15748,105530.0,105520.0,0.46409888]
[1750004965031,0.77407353,105530.0,105520.0,0.36794966]
[1750004965675,0.76459827,105530.0,105520.0,0.36794966]
[1750004966321,0.78354878,105530.0,105520.0,0.36794966]
[1750004966560,0.77407344,105530.0,105520.0,0.36794966]
[1750004967161,0.15748,105530.0,105520.0,0.36794966]
[1750004967412,0.76459827,105530.0,105520.0,0.36794966]
[1750004968332,0.15748,105530.0,105520.0,0.36794966]
[1750004968539,0.76459827,105530.0,105520.0,0.36794966]
[1750004969286,0.76459827,105530.0,105520.0,0.46409888]
[1750004969734,0.76459827,105530.0,105520.0,0.36794966]
[1750004970404,0.77407344,105530.0,105520.0,0.36794966]
[1750004971122,0.002,105530.0,105520.0,0.97506793]
[1750004971353,0.002,105530.0,105520.0,0.39641416]
[1750004971581,0.002,105530.0,105520.0,1.00353243]
[1750004971805,0.002,105530.0,105520.0,1.09968165]
[1750004972462,0.002,105530.0,105520.0,0.49256338]
[1750004973170,0.002,105530.0,105520.0,0.39641416]
[1750004974252,0.60911827,105530.0,105520.0,0.39641416]
[1750004974455,0.60911827,105530.0,105520.0,0.36794966]
[1750004975081,0.002,105530.0,105520.0,0.36794966]
[1750004975295,0.60911827,105530.0,105520.0,0.38692966]
[1750004976976,0.002,105530.0,105520.0,0.38692966]
[1750004977190,0.60911827,105530.0,105520.0,0.38692966]
[1750004978636,0.002,105530.0,105520.0,0.38692966]
[1750004979054,0.60911827,105530.0,105520.0,0.38692966]
[1750004979838,0.60911827,105530.0,105520.0,0.41539416]
[1750004980041,0.002,105530.0,105520.0,0.39641416]
[1750004983532,0.002,105530.0,105520.0,1.09968165]
[1750004984855,0.002,105530.0,105520.0,1.25648165]
[1750004986255,0.002,105530.0,105520.0,0.64936338]
[1750004986476,0.002,105530.0,105520.0,1.29443431]
[1750004986691,0.002,105530.0,105520.0,0.68731604]
[1750004986917,0.002,105530.0,105520.0,1.26596981]
[1750004987163,0.002,105530.0,105520.0,1.32235634]
[1750004987867,0.34,105550.0,105520.0,1.32235634]
[1750004987868,1.20896567,105560.0,105550.0,0.23244596]
[1750004988072,1.05112558,105560.0,105550.0,0.23244596]
[1750004988299,1.19953275,105560.0,105550.0,0.23244596]
[1750004988508,1.20900549,105560.0,105550.0,0.23244596]
[1750004988714,1.21050905,105560.0,105550.0,0.23244596]
[1750004988951,1.21998188,105560.0,105550.0,0.23244596]
[1750004989369,1.21990188,105560.0,105550.0,0.23244596]
[1750004989574,1.21990188,105560.0,105550.0,0.23344596]
[1750004989998,1.06210179,105560.0,105550.0,0.23344596]
[1750004990214,1.22190179,105560.0,105550.0,0.23344596]
[1750004990426,1.22186179,105560.0,105550.0,0.23344596]
[1750004990855,1.23133462,105560.0,105550.0,0.23344596]
[1750004991068,0.54862699,105560.0,105550.0,0.23344596]
[1750004991281,1.14627243,105560.0,105550.0,0.23344596]
[1750004992162,1.15574526,105560.0,105550.0,0.23344596]
[1750004992374,0.3529763,105560.0,105550.0,0.36488328]
[1750004992590,1.12736713,105560.0,105550.0,0.34598772]
[1750004993252,1.12736713,105560.0,105550.0,0.32968772]
[1750004993666,1.13683987,105560.0,105550.0,0.32968772]
[1750004994307,0.96009457,105560.0,105550.0,0.32968772]
[1750004994522,1.12728704,105560.0,105550.0,0.36118772]
[1750004994737,0.96956704,105560.0,105550.0,0.36118772]
[1750004994955,0.342,105560.0,105550.0,0.36118772]
[1750004995244,0.94911827,105560.0,105550.0,0.36118772]
[1750004995479,0.342,105560.0,105550.0,0.36118772]
[1750004995699,0.002,105560.0,105550.0,1.06445521]
[1750004996641,0.76479827,105570.0,105560.0,0.26392531]
[1750004996878,0.60725254,105570.0,105560.0,0.26392531]
[1750004997115,0.76497254,105570.0,105560.0,0.26392531]
[1750004997356,0.77444412,105570.0,105560.0,0.26392531]
[1750004997663,0.76497254,105570.0,105560.0,0.26392531]
[1750004997883,0.784923,105570.0,105560.0,0.26392531]
[1750004998090,0.785923,105570.0,105560.0,0.26392531]
[1750004998475,0.76797254,105570.0,105560.0,0.36016707]
[1750004998946,0.00313427,105570.0,105560.0,0.36016707]
[1750004999206,0.00313427,105570.0,105560.0,1.0024809]
[1750004999441,0.00313427,105570.0,105560.0,0.96728534]
[1750004999712,0.00313427,105570.0,105560.0,0.36016707]
[1750005000162,0.00313427,105570.0,105560.0,0.96728534]
[1750005000380,0.00313427,105570.0,105560.0,0.36016707]
[1750005000828,0.61025254,105570.0,105560.0,0.36016707]
[1750005001060,0.62565254,105570.0,105560.0,0.32866707]
[1750005001508,0.61025254,105570.0,105560.0,0.32866707]
[1750005003012,0.54229961,105570.0,105560.0,0.32866707]
[1750005003685,0.00313427,105570.0,105560.0,0.32866707]
[1750005006622,0.01260585,105570.0,105560.0,0.32866707]
[1750005006840,0.00313427,105570.0,105560.0,0.32866707]
[1750005007297,0.00313427,105570.0,105560.0,0.40423344]
[1750005007736,0.60201514,105570.0,105560.0,0.23242531]
[1750005007947,0.8009358,105570.0,105560.0,0.20841199]
[1750005008225,0.00947283,105560.0,105550.0,0.20843066]
[1750005008454,0.57993817,105560.0,105550.0,0.20843066]
[1750005008657,0.57993817,105560.0,105550.0,0.22297151]
[1750005008889,0.20776584,105560.0,105550.0,0.22297151]
[1750005009104,0.75640392,105560.0,105550.0,0.21790511]
[1750005009316,0.77534976,105560.0,105550.0,0.22737884]
[1750005009554,0.9563429,105560.0,105550.0,0.22397241]
[1750005009775,0.9563429,105560.0,105550.0,0.19995774]
[1750005009992,0.94687016,105560.0,105550.0,0.20943174]
[1750005010212,0.93739733,105560.0,105550.0,0.20943174]
[1750005010424,0.92792432,105560.0,105550.0,0.001]
[1750005010643,0.91845104,105560.0,105550.0,0.19048365]
[1750005010905,0.91845104,105560.0,105550.0,0.001]
[1750005011136,0.92792423,105560.0,105550.0,0.21890547]
[1750005011324,0.93739715,105560.0,105550.0,0.21890547]
[1750005012023,0.93739715,105560.0,105550.0,0.21890565]
[1750005012238,0.93739715,105560.0,105550.0,0.22837938]
[1750005012449,0.93771715,105560.0,105550.0,0.22837938]
[1750005013751,0.20908602,105560.0,105550.0,0.23785302]
[1750005013968,0.21855867,105560.0,105550.0,0.22837893]
[1750005014186,0.20908557,105560.0,105550.0,0.23785248]
[1750005014404,0.75772392,105560.0,105550.0,0.23785248]
[1750005014640,0.59988392,105560.0,105550.0,0.23785248]
[1750005014853,0.75788392,105560.0,105550.0,0.23785248]
[1750005016409,0.74841091,105560.0,105550.0,0.23785248]
[1750005016621,0.75788392,105560.0,105550.0,0.23785248]
[1750005017071,0.74841091,105560.0,105550.0,0.23785248]